bitfinex-derivatives/quotes_SOLF0:USTF0_20220102
["timestamp","ask_amount","ask_price","bid_price","bid_amount"]
[1641148676343,8.43419578,175.04,175.03,4.70339577]
[1641148676946,8.43419578,175.04,174.98,6.1203192]
[1641148677146,3.0,174.99,174.93,9.48273462]
[1641148677351,3.0,174.96,174.93,9.48273462]
[1641148677546,3.0,174.98,174.93,9.48273462]
[1641148677749,3.0,174.97,174.95,31.84756384]
[1641148677949,10.51319578,174.99,174.92,0.22063083]
[1641148678249,3.0,174.96,174.92,0.22063083]
[1641148678449,27.66479,174.94,174.92,0.22063083]
[1641148678649,27.66479,174.94,174.93,4.57317898]
[1641148678849,27.66479,174.96,174.93,4.57317898]
[1641148679255,27.66479,174.96,174.95,3.0]
[1641148679449,3.0,175.03,174.97,4.5721297]
[1641148679650,23.12809305,175.04,174.97,4.5721297]
[1641148679850,20.12809305,175.04,174.97,4.5721297]
[1641148680051,3.0,175.06,174.97,4.5721297]
[1641148680352,5.7108592,175.08,174.97,4.5721297]
[1641148680552,27.66479,175.06,174.97,4.5721297]
[1641148681551,30.66479,175.06,174.97,4.5721297]
[1641148682254,27.66479,175.06,174.97,4.5721297]
[1641148682451,27.66479,175.06,175.0,4.57118321]
[1641148682651,27.66479,175.06,175.03,4.57039703]
[1641148685055,12.17097504,175.04,175.03,4.57039703]
[1641148686859,7.6011717,175.04,175.0,3.0]
[1641148687060,7.6011717,175.04,174.98,3.0]
[1641148687258,7.6011717,175.04,175.0,5.48559634]
[1641148687659,27.66479,175.09,175.0,5.48559634]
[1641148688364,30.66479,175.09,175.0,5.48559634]
[1641148688559,27.66479,175.09,175.0,5.48559634]
[1641148689160,27.66479,175.09,175.01,8.48523675]
[1641148689359,27.66479,175.09,175.01,5.48523675]
[1641148689561,27.66479,175.09,175.03,3.0]
[1641148689759,27.66479,175.09,175.01,5.48523675]
[1641148689961,32.91679,175.09,175.01,5.48523675]
[1641148692363,32.91679,175.09,175.03,4.57063198]
[1641148692763,30.66479,175.04,175.03,4.57063198]
[1641148692962,41.21228036,175.04,174.99,4.57167344]
[1641148693163,8.71379596,175.0,174.93,6.58527367]
[1641148693363,11.88279596,175.0,174.93,6.58527367]
[1641148693565,14.88279596,175.0,174.9,6.58630842]
[1641148693762,11.88279596,175.0,174.9,6.58630842]
[1641148693963,3.0,174.99,174.9,6.58630842]
[1641148694163,11.88279596,175.0,174.9,6.58630842]
[1641148694462,3.0,174.97,174.9,6.58630842]
[1641148694664,27.66479,174.94,174.9,6.58630842]
[1641148695864,4.905,174.95,174.9,6.58630842]
[1641148696063,27.66479,174.96,174.9,6.58630842]
[1641148697769,36.37858596,175.0,174.9,6.58630842]
[1641148698369,10.11517245,174.99,174.9,6.58630842]
[1641148698870,27.66479,174.97,174.9,6.58630842]
[1641148699169,27.66479,174.97,174.91,3.0]
[1641148699367,42.58315831,174.99,174.94,4.57296751]
[1641148699667,42.58315831,174.99,174.97,4.57213133]
[1641148699870,10.11517245,174.99,174.97,9.12413133]
[1641148700271,5.54391124,174.99,174.97,4.552]
[1641148700771,33.3771172,175.04,174.97,4.552]
[1641148700972,33.3771172,175.04,174.95,27.66479]
[1641148703272,37.8051172,175.04,174.95,27.66479]
[1641148703874,37.8051172,175.04,174.93,36.15250209]
[1641148704073,37.8051172,175.04,174.96,3.0]
[1641148704277,33.3771172,175.04,174.98,3.0]
[1641148704474,33.3771172,175.04,174.97,10.1413643]
[1641148705373,33.3771172,175.04,174.97,8.4863643]
[1641148705975,33.3771172,175.04,175.01,4.57094112]
[1641148707377,33.3771172,175.04,174.97,5.4863643]
[1641148707582,33.3771172,175.04,174.97,10.05834932]
[1641148707583,37.6281172,175.04,174.97,10.05834932]
[1641148708182,37.6281172,175.04,174.98,0.64923764]
[1641148709684,37.6281172,175.04,175.0,4.57136694]
[1641148710784,37.6281172,175.04,175.01,0.64923764]
[1641148711287,33.3771172,175.04,175.01,0.64923764]
[1641148714689,5.7123272,175.04,175.03,4.57056498]
[1641148714890,5.7123272,175.04,175.03,9.99656498]
[1641148715290,5.7123272,175.04,175.03,10.64580262]
[1641148716093,5.7123272,175.04,175.03,5.21980262]
[1641148716490,5.7123272,175.04,175.03,0.64923764]
[1641148717490,2.76176526,175.04,175.03,0.64923764]
[1641148718493,2.76176526,175.06,175.03,0.64923764]
[1641148719495,8.47343992,175.06,175.03,0.64923764]
[1641148719895,2.76176526,175.05,175.03,0.64923764]
[1641148720094,9.34776526,175.05,175.03,0.64923764]
[1641148721096,2.76176526,175.04,175.03,0.64923764]
[1641148723497,32.46798586,175.06,175.05,1.80825869]
[1641148723698,24.52638411,175.06,175.05,7.32725869]
[1641148723899,24.52638411,175.06,175.05,5.519]
[1641148724097,24.52638411,175.06,175.05,6.16823764]
[1641148724497,36.26479,175.07,175.05,6.16823764]
[1641148724701,12.16928032,175.06,175.05,0.64923764]
[1641148725102,12.16928032,175.06,175.03,0.64923764]
[1641148725305,8.6,175.07,175.03,0.64923764]
[1641148725504,10.10744498,175.06,175.03,0.64923764]
[1641148726704,12.17003031,175.05,175.03,0.64923764]
[1641148727306,12.17003031,175.06,175.03,0.64923764]
[1641148727508,12.17003031,175.06,175.03,9.12323764]
[1641148727707,1e-08,175.07,175.06,5.48371239]
[1641148728109,24.51969501,175.11,175.06,5.48371239]
[1641148728308,24.51969501,175.11,175.06,6.13295003]
[1641148728707,10.10744498,175.11,175.06,6.13295003]
[1641148728907,10.10744498,175.09,175.07,0.64923764]
[1641148729807,10.10744498,175.16,175.07,0.64923764]
[1641148732411,10.10744498,175.16,175.05,2.64381504]
[1641148732612,0.35618496,175.11,175.04,30.30860504]
[1641148733611,0.35618496,175.11,175.04,27.66479]
[1641148733812,0.35618496,175.1,175.02,2.64381504]
[1641148734012,0.35618496,175.1,175.05,0.6489288]
[1641148734212,0.35618496,175.09,175.05,0.6489288]
[1641148734413,4.94,175.09,175.03,0.6489288]
[1641148734813,4.94,175.09,175.05,2.64381504]
[1641148735013,4.94,175.09,175.04,2.64381504]
[1641148735214,4.94,175.09,175.06,0.6489288]
[1641148735415,0.35618496,175.12,175.06,0.6489288]
[1641148735814,0.35618496,175.12,175.04,0.6489288]
[1641148736914,11.61890303,175.14,175.04,0.6489288]
[1641148737115,5.70890303,175.14,175.04,0.6489288]
[1641148737316,0.35618496,175.13,175.04,3.29274384]
[1641148737514,4.055797,175.05,175.04,7.34854084]
[1641148737917,4.055797,175.05,175.04,4.7047258]
[1641148739117,4.055797,175.05,175.04,7.34854084]
[1641148739519,42.5539022,175.12,175.04,7.34854084]
[1641148739718,42.5539022,175.12,175.06,2.64381504]
[1641148739919,42.5539022,175.12,175.08,2.64381504]
[1641148740119,42.5539022,175.12,175.09,2.64381504]
[1641148740323,42.5539022,175.12,175.09,3.29274384]
[1641148740719,42.5539022,175.12,175.1,0.6489288]
[1641148740923,10.10744498,175.12,175.1,0.6489288]
[1641148741321,10.10744498,175.12,175.09,0.6489288]
[1641148741721,32.80264218,175.15,175.09,0.6489288]
[1641148742121,32.80264218,175.15,175.08,3.29274384]
[1641148742321,0.35618496,175.15,175.08,7.34854084]
[1641148742520,42.5539022,175.16,175.13,2.64381504]
[1641148742720,42.5539022,175.16,175.13,5.445]
[1641148743121,42.5539022,175.16,175.14,0.6489288]
[1641148744223,10.10744498,175.16,175.1,3.29274384]
[1641148744622,10.10744498,175.16,175.11,0.6489288]
[1641148744924,10.46362994,175.16,175.11,0.6489288]
[1641148745123,90.36179,175.22,175.1,4.7047258]
[1641148745124,3.0,175.17,175.1,4.7047258]
[1641148745324,0.35618496,175.11,175.1,4.7047258]
[1641148745523,5.40418496,175.11,175.1,4.7047258]
[1641148746127,5.40418496,175.11,175.1,0.6489288]
[1641148746826,5.40418496,175.11,175.09,0.6489288]
[1641148747025,0.35618496,175.11,175.09,0.6489288]
[1641148747326,10.46362994,175.11,175.09,0.6489288]
[1641148747826,10.46362994,175.11,175.07,0.6489288]
[1641148748327,0.35618496,175.11,175.07,0.6489288]
[1641148748630,0.35618496,175.11,175.06,0.6489288]
[1641148749130,42.5539022,175.14,175.06,0.6489288]
[1641148749330,0.35618496,175.13,175.06,3.29274384]
[1641148749529,42.5539022,175.14,175.12,4.56827278]
[1641148749729,37.98667912,175.14,175.1,5.963]
[1641148749928,10.10744498,175.14,175.13,0.6489288]
[1641148750129,10.46362994,175.14,175.13,0.6489288]
[1641148750529,10.10744498,175.14,175.11,0.6489288]
[1641148750931,10.10744498,175.14,175.1,0.6489288]
[1641148751334,0.35618496,175.15,175.07,0.6489288]
[1641148751532,0.35618496,175.16,175.07,9.89174384]
[1641148751733,27.87923414,175.17,175.09,27.66479]
[1641148752134,0.35618496,175.16,175.07,9.89174384]
[1641148752334,10.10744498,175.14,175.1,0.6489288]
[1641148753238,0.35618496,175.15,175.08,0.6489288]
[1641148753537,0.35618496,175.15,175.07,0.6489288]
[1641148756841,4.0443112,175.09,175.07,0.6489288]
[1641148757542,4.0443112,175.09,175.08,2.64381504]
[1641148758143,4.0443112,175.09,175.07,3.29274384]
[1641148758342,4.0443112,175.09,175.08,0.6489288]
[1641148758744,4.0443112,175.1,175.08,0.6489288]
[1641148760447,12.13285,175.12,175.08,0.6489288]
[1641148762249,12.13285,175.11,175.08,0.6489288]
[1641148763851,12.13285,175.11,175.09,6.57936581]
[1641148764048,12.13285,175.11,175.1,2.64381504]
[1641148764250,10.10744498,175.16,175.1,30.30860504]
[1641148764449,10.10744498,175.16,175.13,2.64381504]
[1641148764650,10.10744498,175.16,175.13,8.00881504]
[1641148764849,10.10744498,175.16,175.13,5.365]
[1641148765050,24.47152805,175.18,175.14,0.6489288]
[1641148765250,10.10744498,175.18,175.14,0.6489288]
[1641148765950,10.10744498,175.18,175.13,0.6489288]
[1641148766151,10.10744498,175.18,175.13,28.3137188]
[1641148766352,22.88408307,175.19,175.13,0.6489288]
[1641148766353,0.35618496,175.17,175.13,0.6489288]
[1641148766954,0.35618496,175.17,175.11,4.055797]
[1641148766955,0.35618496,175.17,175.12,0.6489288]
[1641148767355,0.35618496,175.17,175.12,3.29274384]
[1641148767755,0.35618496,175.17,175.13,0.6489288]
[1641148768358,24.47152805,175.22,175.13,0.6489288]
[1641148769459,10.10744498,175.22,175.13,0.6489288]
[1641148769859,10.10744498,175.22,175.13,6.4739288]
[1641148770060,0.35618496,175.2,175.13,9.11774384]
[1641148770262,0.35618496,175.2,175.14,27.66479]
[1641148770460,32.78959861,175.2,175.14,27.66479]
[1641148770958,32.78959861,175.2,175.15,0.6489288]
[1641148771364,42.89704359,175.22,175.15,6.1039288]
[1641148771565,42.54085863,175.22,175.17,6.57643403]
[1641148771760,42.54085863,175.22,175.2,2.64381504]
[1641148771962,42.54085863,175.22,175.2,8.94081504]
[1641148772362,42.54085863,175.22,175.21,2.64381504]
[1641148772765,10.10744498,175.24,175.21,3.29274384]
[1641148773163,10.10744498,175.24,175.22,0.6489288]
[1641148773366,10.10744498,175.24,175.23,2.64381504]
[1641148773765,32.43341365,175.26,175.23,2.64381504]
[1641148774168,32.43341365,175.26,175.24,0.6489288]
[1641148774468,32.43341365,175.26,175.24,5.1809288]
[1641148774667,10.10744498,175.28,175.24,5.1809288]
[1641148775266,10.10744498,175.28,175.25,0.6489288]
[1641148776270,10.10744498,175.28,175.23,0.6489288]
[1641148776469,42.54085863,175.28,175.23,0.6489288]
[1641148777169,10.10744498,175.28,175.23,0.6489288]
[1641148777570,10.10744498,175.28,175.22,0.6489288]
[1641148777873,42.54085863,175.28,175.22,3.29274384]
[1641148778169,42.54085863,175.28,175.26,5.47745396]
[1641148778570,42.54085863,175.28,175.27,0.6489288]
[1641148778770,10.10744498,175.28,175.27,0.6489288]
[1641148779472,27.66479,175.29,175.27,0.6489288]
[1641148780470,0.35618496,175.28,175.27,6.12612908]
[1641148781475,0.35618496,175.31,175.27,6.12612908]
[1641148781673,8.44,175.34,175.29,5.47636449]
[1641148781674,8.79618496,175.34,175.29,5.47636449]
[1641148781875,8.44,175.34,175.29,5.47636449]
[1641148782076,14.38466551,175.31,175.27,6.85822402]
[1641148782273,14.38466551,175.31,175.27,9.50203906]
[1641148782473,14.38466551,175.31,175.29,27.66479]
[1641148782675,14.38466551,175.31,175.27,7.62481504]
[1641148782875,0.35618496,175.35,175.27,4.981]
[1641148783274,5.70109176,175.38,175.27,4.981]
[1641148783475,0.35618496,175.34,175.27,4.981]
[1641148783677,5.70109176,175.38,175.27,4.981]
[1641148783880,5.70109176,175.38,175.23,2.64381504]
[1641148784079,0.35618496,175.32,175.22,63.03821504]
[1641148784278,0.35618496,175.32,175.24,0.64822024]
[1641148784479,27.66479,175.36,175.25,27.66479]
[1641148784681,0.35618496,175.32,175.25,27.66479]
[1641148785481,0.35618496,175.32,175.26,0.64822024]
[1641148785682,27.66479,175.36,175.26,0.64822024]
[1641148785683,0.35618496,175.33,175.27,2.64381504]
[1641148785880,0.35618496,175.33,175.28,2.64381504]
[1641148786081,123.98787094,175.37,175.26,6.87422024]
[1641148786082,14.38466551,175.36,175.27,2.64381504]
[1641148786279,0.35618496,175.35,175.29,3.29203528]
[1641148786481,0.35618496,175.35,175.29,28.31301024]
[1641148786880,0.35618496,175.35,175.3,0.64822024]
[1641148787080,0.35618496,175.35,175.3,6.52222024]
[1641148787481,49.00079039,175.37,175.32,5.47544614]
[1641148787682,0.35618496,175.37,175.32,5.47544614]
[1641148787882,27.66479,175.4,175.32,5.47544614]
[1641148788181,0.35618496,175.37,175.33,0.64822024]
[1641148788382,27.66479,175.4,175.33,0.64822024]
[1641148788581,0.35618496,175.36,175.33,0.64822024]
[1641148788782,0.35618496,175.38,175.33,0.64822024]
[1641148788985,27.66479,175.4,175.33,0.64822024]
[1641148789583,0.35618496,175.37,175.33,0.64822024]
[1641148789785,3.59677881,175.39,175.33,0.64822024]
[1641148789982,27.66479,175.4,175.33,0.64822024]
[1641148790184,0.35618496,175.34,175.33,0.64822024]
[1641148791087,27.66479,175.36,175.33,0.64822024]
[1641148791386,0.35618496,175.34,175.33,0.64822024]
[1641148791587,13.9357397,175.34,175.17,35.07722869]
[1641148791787,3.0,175.3,175.18,62.1492]
[1641148791987,0.35618496,175.25,175.18,62.1492]
[1641148792189,6.70318496,175.3,175.2,10.53380322]
[1641148792390,0.35618496,175.32,175.25,5.47779297]
[1641148792591,0.35618496,175.31,175.25,5.47779297]
[1641148792792,0.35618496,175.26,175.21,26.65965167]
[1641148792989,0.35618496,175.25,175.19,27.66479]
[1641148793190,4.406,175.3,175.18,62.1492]
[1641148793390,0.35618496,175.26,175.18,62.1492]
[1641148793592,3.0,175.31,175.18,62.1492]
[1641148793789,0.35618496,175.25,175.18,62.1492]
[1641148794992,27.66479,175.28,175.18,62.1492]
[1641148795291,12.15640461,175.24,175.16,18.73305537]
[1641148795490,12.15640461,175.24,175.16,82.67025537]
[1641148795694,12.15640461,175.24,175.18,2.64381504]
[1641148795991,12.15640461,175.21,175.16,73.1576658]
[1641148796191,12.15640461,175.21,175.16,9.2204658]
[1641148796591,12.15640461,175.21,175.16,6.57665076]
[1641148796790,12.15640461,175.21,175.16,9.2204658]
[1641148797191,12.15640461,175.23,175.16,6.57665076]
[1641148797593,12.51258957,175.23,175.16,6.57665076]
[1641148797790,12.15640461,175.23,175.16,6.57665076]
[1641148798292,12.15640461,175.23,175.18,5.47981643]
[1641148798690,12.15640461,175.22,175.18,5.47981643]
[1641148799692,12.15640461,175.22,175.21,2.64381504]
[1641148799892,6.67857876,175.22,175.21,2.64381504]
[1641148800096,6.67857876,175.23,175.21,2.64381504]
[1641148800292,6.67857876,175.23,175.22,2.64381504]
[1641148800693,10.08336541,175.26,175.22,30.30860504]
[1641148800894,0.35618496,175.29,175.24,2.64381504]
[1641148801092,32.41957753,175.3,175.23,2.64381504]
[1641148801292,0.35618496,175.29,175.23,2.64381504]
[1641148801495,32.41957753,175.3,175.23,2.64381504]
[1641148802093,0.35618496,175.24,175.2,27.66479]
[1641148802297,0.35618496,175.21,175.14,32.43341365]
[1641148802502,0.35618496,175.19,175.14,32.43341365]
[1641148802697,32.19579,175.21,175.14,32.43341365]
[1641148802897,0.35618496,175.17,175.14,32.43341365]
[1641148803097,0.35618496,175.15,175.11,32.43341365]
[1641148803299,5.98,175.17,175.11,32.43341365]
[1641148803497,0.35618496,175.14,175.11,32.43341365]
[1641148804198,0.35618496,175.14,175.09,9.47436675]
[1641148804801,10.08336541,175.2,175.09,12.11818179]
[1641148805002,0.35618496,175.16,175.09,9.47436675]
[1641148805903,3.0,175.18,175.09,9.47436675]
[1641148806104,0.35618496,175.16,175.09,9.47436675]
[1641148806902,27.66479,175.17,175.11,2.64381504]
[1641148807104,0.35618496,175.17,175.12,2.64381504]
[1641148807302,0.35618496,175.17,175.12,5.034]
[1641148809013,0.35618496,175.17,175.13,1.28491081]
[1641148809216,0.35618496,175.22,175.14,2.64381504]
[1641148809413,27.41957753,175.24,175.18,2.64381504]
[1641148809612,27.41957753,175.24,175.2,2.64381504]
[1641148809811,27.41957753,175.24,175.22,2.64381504]
[1641148810012,27.41957753,175.24,175.22,7.07581504]
[1641148810212,7.753e-05,175.24,175.22,4.432]
[1641148810518,7.753e-05,175.29,175.22,7.07581504]
[1641148810715,7.753e-05,175.29,175.22,32.09679]
[1641148810914,3.00007753,175.29,175.22,4.432]
[1641148811116,0.35618496,175.23,175.15,1.28491081]
[1641148811314,0.35618496,175.2,175.15,1.28491081]
[1641148811515,5.222,175.23,175.15,1.28491081]
[1641148811716,0.35618496,175.22,175.15,1.28491081]
[1641148811916,0.35618496,175.22,175.14,58.3387]
[1641148812618,0.35618496,175.22,175.18,2.64381504]
[1641148812816,60.2888,175.27,175.18,37.14760504]
[1641148813018,0.35618496,175.26,175.18,34.50379]
[1641148813617,27.66479,175.3,175.18,34.50379]
[1641148813817,0.35618496,175.28,175.18,34.50379]
[1641148814216,27.66479,175.3,175.18,34.50379]
[1641148814417,12.70250079,175.29,175.19,6.23145198]
[1641148815016,0.35618496,175.27,175.19,6.23145198]
[1641148815319,0.35618496,175.25,175.19,6.23145198]
[1641148815517,5.87,175.26,175.19,6.23145198]
[1641148816518,2.72768096,175.24,175.18,27.66479]
[1641148816717,0.35618496,175.2,175.17,6.57637777]
[1641148816916,5.029,175.21,175.17,6.57637777]
[1641148817116,0.35618496,175.2,175.17,6.57637777]
[1641148818121,0.35618496,175.22,175.17,6.57637777]
[1641148818517,0.35618496,175.26,175.17,6.57637777]
[1641148818719,0.35618496,175.27,175.21,27.66479]
[1641148818919,0.35618496,175.27,175.21,33.02479]
[1641148819119,61.0638,175.31,175.21,33.02479]
[1641148819319,2.76662287,175.25,175.21,33.02479]
[1641148819718,3.12280783,175.25,175.21,33.02479]
[1641148819920,2.76662287,175.25,175.21,33.02479]
[1641148820120,12.84559593,175.3,175.21,33.02479]
[1641148820320,0.35618496,175.27,175.21,35.66860504]
[1641148820519,0.35618496,175.28,175.21,33.02479]
[1641148820719,0.35618496,175.28,175.21,35.66860504]
[1641148820923,2.76662287,175.26,175.21,35.66860504]
[1641148821621,10.07897306,175.3,175.21,35.66860504]
[1641148821823,10.07897306,175.31,175.24,5.69930468]
[1641148822521,10.43515802,175.31,175.24,5.69930468]
[1641148822725,10.43515802,175.31,175.22,6.2310479]
[1641148822925,2.72654141,175.3,175.28,27.66479]
[1641148826526,4.141e-05,175.3,175.28,30.30860504]
[1641148826727,24.33558398,175.37,175.29,5.69751873]
[1641148826926,24.33558398,175.4,175.31,27.66479]
[1641148827127,0.35618496,175.36,175.31,27.66479]
[1641148827528,24.33558398,175.4,175.31,27.66479]
[1641148827529,0.35618496,175.37,175.31,27.66479]
[1641148827927,0.35618496,175.36,175.31,27.66479]
[1641148828327,13.07897306,175.43,175.31,27.66479]
[1641148828727,0.35618496,175.37,175.31,27.66479]
[1641148829129,4.07897306,175.43,175.36,2.64381504]
[1641148829332,4.07897306,175.43,175.36,5.025]
[1641148829931,14.61279588,175.45,175.36,5.025]
[1641148830132,12.50149189,175.43,175.36,5.025]
[1641148830333,12.14530693,175.43,175.36,67.1446]
[1641148830534,12.50149189,175.43,175.39,5.47326318]
[1641148830732,0.35618496,175.42,175.39,5.47326318]
[1641148831034,12.14530693,175.43,175.39,5.47326318]
[1641148831436,12.14530693,175.42,175.39,5.47326318]
[1641148832332,0.35618496,175.41,175.39,5.47326318]
[1641148832534,12.14530693,175.42,175.39,5.47326318]
[1641148833034,12.14530693,175.42,175.39,33.13805318]
[1641148833237,12.14530693,175.41,175.39,33.13805318]
[1641148834834,12.14530693,175.41,175.39,5.47326318]
[1641148836934,12.50149189,175.41,175.39,5.47326318]
[1641148837136,12.14530693,175.43,175.35,39.81009693]
[1641148837335,12.50149189,175.43,175.35,39.81009693]
[1641148837835,12.14530693,175.42,175.35,27.66479]
[1641148839336,12.14530693,175.42,175.39,27.66479]
[1641148839738,0.35618496,175.4,175.39,27.66479]
[1641148839936,6.55318496,175.4,175.39,27.66479]
[1641148840137,6.55318496,175.4,175.35,27.66479]
[1641148840335,6.197,175.4,175.35,27.66479]
[1641148840537,0.35618496,175.39,175.35,27.66479]
[1641148840736,12.14530693,175.41,175.35,27.66479]
[1641148841343,12.14530693,175.41,175.35,55.32958]
[1641148841739,0.35618496,175.41,175.35,55.32958]
[1641148842743,12.50149189,175.43,175.39,4.04825654]
[1641148842943,12.50149189,175.43,175.39,10.76125654]
[1641148843143,12.14530693,175.43,175.39,10.76125654]
[1641148843341,0.35618496,175.43,175.41,27.66479]
[1641148844749,12.50149189,175.43,175.41,27.66479]
[1641148845146,12.14530693,175.43,175.39,4.04825654]
[1641148845346,12.14530693,175.44,175.39,31.71304654]
[1641148845546,0.35618496,175.42,175.39,31.71304654]
[1641148845746,12.14530693,175.44,175.39,31.71304654]
[1641148845946,0.35618496,175.43,175.39,31.71304654]
[1641148846147,0.35618496,175.42,175.39,31.71304654]
[1641148846949,0.35618496,175.43,175.4,4.04825654]
[1641148847350,12.14530693,175.44,175.42,27.66479]
[1641148847550,12.14530693,175.46,175.42,37.52204654]
[1641148847849,0.35618496,175.43,175.42,37.52204654]
[1641148848050,0.35618496,175.43,175.42,9.85725654]
[1641148848250,0.35618496,175.43,175.38,12.14530693]
[1641148848552,0.35618496,175.39,175.38,12.14530693]
[1641148848953,0.35618496,175.41,175.38,12.14530693]
[1641148849152,0.35618496,175.4,175.37,12.14530693]
[1641148849352,0.35618496,175.4,175.37,39.81009693]
[1641148849650,0.35618496,175.42,175.37,39.81009693]
[1641148849850,12.14530693,175.41,175.37,27.66479]
[1641148850953,0.35618496,175.43,175.37,27.66479]
[1641148851353,0.35618496,175.43,175.4,27.66479]
[1641148851554,0.35618496,175.43,175.4,33.03279]
[1641148852254,0.35618496,175.42,175.4,33.03279]
[1641148852653,0.35618496,175.41,175.4,33.03279]
[1641148852854,0.35618496,175.41,175.36,12.14530693]
[1641148853253,12.14530693,175.44,175.36,12.14530693]
[1641148853654,0.35618496,175.4,175.34,27.66479]
[1641148854054,12.14530693,175.41,175.34,27.66479]
[1641148854255,12.14530693,175.41,175.34,32.40979]
[1641148854456,12.14530693,175.42,175.34,32.40979]
[1641148855054,12.50149189,175.42,175.34,32.40979]
[1641148855255,12.14530693,175.43,175.35,18.48734772]
[1641148855654,0.35618496,175.42,175.35,18.48734772]
[1641148856255,12.50149189,175.42,175.34,27.66479]
[1641148856455,12.14530693,175.42,175.34,27.66479]
[1641148856958,12.50149189,175.41,175.34,27.66479]
[1641148858561,0.35618496,175.41,175.34,39.81009693]
[1641148858960,12.50149189,175.42,175.35,2.64381504]
[1641148859159,12.50149189,175.42,175.34,42.45391197]
[1641148859360,12.14530693,175.42,175.38,27.66479]
[1641148859560,12.14530693,175.42,175.38,33.13879]
[1641148859759,0.35618496,175.42,175.38,33.13879]
[1641148860362,12.14530693,175.43,175.38,33.13879]
[1641148860963,12.50149189,175.43,175.38,33.13879]
[1641148861363,12.14530693,175.43,175.38,33.13879]
[1641148861562,0.35618496,175.43,175.38,33.13879]
[1641148861963,12.14530693,175.45,175.38,33.13879]
[1641148862165,0.35618496,175.42,175.38,33.13879]
[1641148862661,0.35618496,175.43,175.38,33.13879]
[1641148863763,12.14530693,175.44,175.38,33.13879]
[1641148864666,0.35618496,175.42,175.38,33.13879]
[1641148865468,12.50149189,175.42,175.38,33.13879]
[1641148865666,12.14530693,175.42,175.38,33.13879]
[1641148865867,12.50149189,175.42,175.38,33.13879]
[1641148866066,12.14530693,175.42,175.38,33.13879]
[1641148866269,12.14530693,175.43,175.38,33.13879]
[1641148866970,0.35618496,175.41,175.38,33.13879]
[1641148867172,0.35618496,175.41,175.39,1.36624581]
[1641148867370,12.14530693,175.44,175.39,1.36624581]
[1641148867972,0.35618496,175.4,175.39,1.36624581]
[1641148868372,12.14530693,175.44,175.39,1.36624581]
[1641148868574,12.14530693,175.43,175.39,1.36624581]
[1641148869074,12.14530693,175.44,175.39,1.36624581]
[1641148869475,12.14530693,175.44,175.43,27.66479]
[1641148869676,12.50149189,175.44,175.43,27.66479]
[1641148869975,0.35618496,175.44,175.39,1.36624581]
[1641148870176,0.35618496,175.42,175.39,1.36624581]
[1641148870476,12.14530693,175.45,175.39,1.36624581]
[1641148870875,0.35618496,175.43,175.39,1.36624581]
[1641148871075,3.03772208,175.43,175.41,2.64381504]
[1641148871375,3.03772208,175.43,175.42,27.66479]
[1641148871874,0.35618496,175.43,175.42,27.66479]
[1641148872875,0.35618496,175.43,175.42,29.02993394]
[1641148873274,12.14530693,175.48,175.42,29.02993394]
[1641148873477,12.14530693,175.48,175.46,27.66479]
[1641148873676,0.35618496,175.47,175.46,27.66479]
[1641148874077,0.35618496,175.47,175.43,60.3435]
[1641148874277,0.35618496,175.45,175.42,29.02993394]
[1641148874475,0.35618496,175.45,175.42,27.66479]
[1641148875279,0.35618496,175.45,175.43,1.36514825]
[1641148875478,0.35618496,175.45,175.44,27.66479]
[1641148875978,0.35618496,175.45,175.44,29.02993825]
[1641148876182,12.14530693,175.5,175.44,29.02993825]
[1641148876378,0.35618496,175.49,175.44,29.02993825]
[1641148876578,0.35618496,175.45,175.44,29.02993825]
[1641148876781,6.98018496,175.45,175.44,1.36514825]
[1641148876980,6.98018496,175.45,175.42,12.14530693]
[1641148877180,0.35618496,175.43,175.38,32.38873603]
[1641148877382,0.35618496,175.39,175.38,32.38873603]
[1641148877581,6.29418496,175.39,175.38,32.38873603]
[1641148877781,5.938,175.39,175.38,32.38873603]
[1641148878182,6.29418496,175.39,175.34,27.66479]
[1641148878480,0.35618496,175.35,175.34,27.66479]
[1641148878680,4.406,175.35,175.34,27.66479]
[1641148879481,4.406,175.35,175.31,27.66479]
[1641148880084,0.35618496,175.37,175.31,27.66479]
[1641148880382,0.35618496,175.38,175.31,27.66479]
[1641148881185,2.7616449,175.37,175.31,27.66479]
[1641148881889,0.35618496,175.32,175.31,27.66479]
[1641148882089,5.90818496,175.32,175.31,27.66479]
[1641148882289,5.90818496,175.32,175.29,27.66479]
[1641148882488,0.35618496,175.3,175.23,58.0804]
[1641148882691,0.35618496,175.28,175.23,2.64381504]
[1641148882989,5.14818496,175.28,175.22,2.64381504]
[1641148883190,4.792,175.28,175.24,16.06692111]
[1641148883389,5.14818496,175.28,175.24,16.06692111]
[1641148883591,5.14818496,175.28,175.25,27.66479]
[1641148883790,4.792,175.28,175.25,27.66479]